bitfinex/quotes_ETHUSD_20240828
["timestamp","ask_amount","ask_price","bid_price","bid_amount"]
[1724877318822,3.95051,2531.4,2530.6,3.95153]
[1724877319038,3.95117,2530.9,2530.2,6.27447]
[1724877319249,3.95149,2530.7,2530.2,6.27447]
[1724877319450,3.1259949,2530.7,2530.2,6.27447]
[1724877319746,6.95086,2531.1,2530.5,3.95177]
[1724877320065,3.95011,2531.6,2531.0,3.9509]
[1724877320350,3.9511,2531.0,2530.6,0.55]
[1724877320517,3.95127,2530.9,2530.5,0.55]
[1724877320717,3.95151,2530.7,2530.3,0.55]
[1724877321454,3.95128,2530.9,2530.3,4.50209]
[1724877321655,3.0,2530.8,2530.3,4.50209]
[1724877322251,3.0,2530.8,2530.3,0.55]
[1724877322492,3.95188,2530.5,2530.3,0.55]
[1724877322631,3.9521,2530.3,2529.8,2.3527]
[1724877322810,7.90434,2530.3,2529.8,2.3527]
[1724877323006,3.95242,2530.1,2529.5,0.23206]
[1724877323321,7.90438,2530.3,2529.4,6.30611]
[1724877323637,6.95166,2530.6,2529.4,2.3527]
[1724877323638,3.0,2530.2,2529.4,2.3527]
[1724877323852,3.95186,2530.5,2529.8,3.95277]
[1724877324030,3.0,2530.4,2529.8,3.95277]
[1724877324226,6.95207,2530.4,2529.8,3.95277]
[1724877324457,3.0,2530.4,2529.9,0.55]
[1724877324628,3.0,2530.4,2529.9,4.50259]
[1724877324833,2.4214,2530.9,2530.3,3.95204]
[1724877324834,3.95126,2530.9,2530.3,3.95204]
[1724877325036,3.95093,2531.1,2530.4,0.55]
[1724877325367,3.95093,2531.1,2530.4,1.000204]
[1724877325571,3.0504191,2531.7,2530.4,0.55]
[1724877325875,3.95083,2531.2,2530.3,0.07904174]
[1724877326025,3.95083,2531.2,2530.6,3.95152]
[1724877326224,3.95083,2531.2,2530.7,0.55]
[1724877326425,3.94995,2531.7,2530.8,2.50082761]
[1724877326640,3.94995,2531.7,2531.1,3.95083]
[1724877326879,3.94947,2532.0,2531.4,3.95035]
[1724877327028,3.94947,2532.0,2531.5,0.55]
[1724877327368,3.94968,2531.9,2531.5,0.55]
[1724877327879,0.51539718,2532.4,2531.5,3.95022]
[1724877328030,3.94902,2532.3,2531.6,0.55]
[1724877328380,0.4137666,2532.5,2531.7,0.07899728]
[1724877328531,0.4137666,2532.5,2531.8,4.49964]
[1724877328532,3.9487,2532.5,2531.8,4.49964]
[1724877328731,3.94973,2531.9,2531.6,0.55]
[1724877329059,3.9491,2532.3,2531.6,4.49997]
[1724877329233,3.9491,2532.3,2531.6,0.999997]
[1724877329434,3.9491,2532.3,2531.6,0.55]
[1724877329662,3.0,2532.2,2531.6,4.50005]
[1724877329833,3.0,2532.2,2531.6,0.55]
[1724877330032,3.94946,2532.0,2531.6,0.55]
[1724877330370,3.0,2532.2,2531.2,2.3019]
[1724877330371,3.0,2532.2,2531.4,0.55]
[1724877330572,3.94965,2531.9,2531.3,0.55]
[1724877330867,3.0,2532.3,2531.2,2.3019]
[1724877331068,3.94939,2532.1,2531.2,2.3019]
[1724877331269,3.94996,2531.7,2531.2,2.3019]
[1724877331432,3.94973,2531.9,2531.2,2.3019]
[1724877331634,3.94991,2531.7,2531.2,2.3019]
[1724877331834,3.94972,2531.9,2531.2,2.3019]
[1724877332076,3.94992,2531.7,2531.2,2.53209]
[1724877332279,3.0,2532.0,2531.2,2.3019]
[1724877332587,3.94887,2532.4,2530.0,8.57967103]
[1724877332588,3.95086,2531.1,2530.7,2.3019]
[1724877332729,3.95086,2531.1,2530.4,3.95184]
[1724877333375,3.95086,2531.1,2530.3,2.3019]
[1724877333575,7.90184,2531.1,2530.4,3.95183]
[1724877333784,3.95119,2530.9,2530.3,6.25389]
[1724877333991,3.95086,2531.1,2530.5,3.95176]
[1724877334544,7.90182,2531.1,2530.5,3.95176]
[1724877334743,3.95086,2531.1,2530.3,7.274515]
[1724877335005,3.95086,2531.1,2530.3,7.274505]
[1724877335159,3.95086,2531.1,2530.5,3.9517]
[1724877335360,3.95117,2530.9,2530.6,0.55]
[1724877335564,3.95086,2531.1,2530.5,4.50164]
[1724877335796,3.0,2531.0,2530.5,5.181994]
[1724877336089,3.0,2531.0,2530.5,4.50164]
[1724877336274,3.0,2531.0,2530.5,8.4533]
[1724877336586,3.0,2531.0,2530.5,4.50164]
[1724877336895,3.95028,2531.5,2530.6,0.07902847]
[1724877337053,3.95028,2531.5,2530.5,0.55]
[1724877337054,3.95054,2531.3,2530.7,4.50137]
[1724877337383,7.90118,2531.3,2530.7,3.95137]
[1724877337543,7.90118,2531.3,2530.8,0.55]
[1724877337748,3.95019,2531.6,2530.8,4.951417]
[1724877337950,3.95036,2531.5,2530.9,3.95115]
[1724877338151,3.95079,2531.2,2530.8,0.55]
[1724877338381,3.95091,2531.1,2530.3,6.25389]
[1724877338585,3.95091,2531.1,2530.4,0.55]
[1724877338800,3.9501,2531.6,2530.5,0.680389]
[1724877338959,3.9515,2530.7,2529.9,6.38381]
[1724877339164,3.95126,2530.9,2530.3,3.95208]
[1724877339362,3.95126,2530.9,2530.3,3.952]
[1724877339563,3.95149,2530.7,2530.1,3.9523]
[1724877339874,3.95156,2530.7,2530.0,0.0790366]
[1724877340084,3.0,2530.6,2530.0,0.25102366]
[1724877340278,3.95242,2530.1,2529.4,3.95341]
[1724877340499,3.9522,2530.3,2529.6,3.95311]
[1724877340848,3.0,2530.6,2529.2,0.24139]
[1724877340849,3.95281,2529.9,2529.2,4.19508]
[1724877341192,3.95322,2529.6,2529.1,2.4139]
[1724877341488,3.95322,2529.6,2528.8,3.95436]
[1724877341697,3.9536,2529.4,2528.8,3.95436]
[1724877341870,3.95325,2529.6,2528.8,3.95434]
[1724877342072,3.95234,2530.2,2529.4,3.95338]
[1724877342405,6.95241,2530.1,2529.4,3.95338]
[1724877342554,3.9526,2530.0,2529.4,3.95338]
[1724877342751,3.0,2530.1,2529.4,4.992822]
[1724877343080,3.0,2530.1,2529.2,2.4873]
[1724877343284,3.9531,2529.7,2529.2,2.4873]
[1724877343485,3.95278,2529.9,2529.2,2.4873]
[1724877343651,3.95289,2529.8,2529.2,2.4873]
[1724877343988,3.95277,2529.9,2529.2,6.44102]
[1724877344191,3.95277,2529.9,2529.2,7.480516]
[1724877344488,3.95277,2529.9,2529.3,4.50356]
[1724877344717,3.9526,2530.0,2529.4,3.95348]
[1724877344854,6.95244,2530.1,2529.5,0.55]
[1724877344855,3.0,2530.1,2529.5,0.55]
[1724877345178,3.95153,2530.7,2530.0,3.95243]
[1724877345507,3.95152,2530.7,2530.1,0.55]
[1724877345719,0.41394284,2531.0,2530.1,0.55]
[1724877345720,3.95197,2530.4,2530.1,0.55]
[1724877346254,3.95189,2530.5,2530.0,1.0120862]
[1724877346806,3.0,2530.4,2530.0,1.0120862]
[1724877347473,3.95241,2530.1,2530.0,1.0120862]
[1724877347901,7.90482,2530.1,2530.0,1.0120862]
[1724877348068,10.90482,2530.1,2530.0,1.0120862]
[1724877348272,11.995302,2530.1,2530.0,1.0120862]
[1724877348886,15.947712,2530.1,2530.0,1.0120862]
[1724877350304,20.39960251,2530.1,2530.0,6.2e-06]
[1724877350513,27.35899354,2530.1,2530.0,6.2e-06]
[1724877351510,22.90710303,2530.1,2530.0,6.2e-06]
[1724877351707,26.85951303,2530.1,2530.0,6.2e-06]
[1724877351906,22.90710303,2530.1,2530.0,6.2e-06]
[1724877352400,10.90482,2530.1,2530.0,6.2e-06]
[1724877352810,6.95241,2530.1,2530.0,6.2e-06]
[1724877354701,7.90482,2530.1,2530.0,6.2e-06]
[1724877356215,14.85723,2530.1,2530.0,6.2e-06]
[1724877356664,18.80964,2530.1,2530.0,6.2e-06]
[1724877356865,21.36538503,2530.1,2530.0,6.2e-06]
[1724877357308,25.31779503,2530.1,2530.0,6.2e-06]
[1724877357490,21.36538503,2530.1,2530.0,6.2e-06]
[1724877357868,10.90482,2530.1,2530.0,6.2e-06]
[1724877358687,6.95241,2530.1,2530.0,6.2e-06]
[1724877359369,10.90482,2530.1,2530.0,6.2e-06]
[1724877359700,6.95241,2530.1,2530.0,6.2e-06]
[1724877360305,3.95212,2530.3,2530.0,6.2e-06]
[1724877360510,3.95203,2530.4,2530.0,6.2e-06]
[1724877360818,7.90482,2530.1,2530.0,6.2e-06]
[1724877361176,11.85723,2530.1,2530.0,6.2e-06]
[1724877361386,22.01776903,2530.1,2530.0,6.2e-06]
[1724877362101,25.01776903,2530.1,2530.0,6.2e-06]
[1724877362773,28.97017903,2530.1,2530.0,6.2e-06]
[1724877362999,29.46965954,2530.1,2530.0,6.2e-06]
[1724877363180,28.97017903,2530.1,2530.0,6.2e-06]
[1724877363600,34.7117595,2530.1,2530.0,6.2e-06]
[1724877363806,3.95426,2529.0,2528.6,0.1250244]
[1724877364029,3.0,2528.9,2528.6,0.1250244]
[1724877364189,3.0,2528.9,2528.6,4.0797644]
[1724877364517,3.95433,2528.9,2528.6,0.1250244]
[1724877364815,3.0,2529.1,2528.6,4.0797544]
[1724877365021,3.0,2529.1,2528.6,0.1250244]
[1724877365527,3.95405,2529.1,2528.6,0.1250244]
[1724877365701,3.0,2529.0,2528.6,0.1250244]
[1724877366018,3.95372,2529.3,2528.8,3.95438]
[1724877366220,3.95339,2529.5,2528.9,0.945438]
[1724877366376,3.95339,2529.5,2529.0,2.2929]
[1724877366583,3.95351,2529.4,2529.1,0.55]
[1724877366895,3.95397,2529.1,2528.6,2.4179244]
[1724877367113,3.95356,2529.4,2528.7,0.55]
[1724877367277,3.95428,2528.9,2528.6,2.4179244]
[1724877367597,3.95447,2528.8,2528.6,2.4179244]
[1724877368006,3.9546,2528.7,2528.6,0.1250244]
[1724877368190,7.9092,2528.7,2528.6,0.1250244]
[1724877368805,7.90878,2528.9,2528.6,0.1250244]
[1724877369023,3.9546,2528.7,2528.6,0.1250244]
[1724877369593,6.95446,2528.8,2528.6,0.1250244]
[1724877370203,3.0,2528.8,2528.6,4.0796944]
[1724877370407,3.9537,2529.3,2528.8,2.4564]
[1724877370589,3.0,2529.2,2528.8,2.4564]
[1724877370808,6.95382,2529.2,2528.8,2.4564]
[1724877371316,3.95359,2529.4,2528.8,3.56047644]
[1724877371523,3.95407,2529.1,2528.8,2.4564]
[1724877371927,3.95444,2528.8,2528.6,0.1250244]
[1724877372757,7.9092,2528.7,2528.6,0.1250244]
[1724877372897,10.9092,2528.7,2528.6,0.1250244]
[1724877373442,14.8638,2528.7,2528.6,0.1250244]
[1724877375215,17.332,2528.7,2528.6,0.1250244]
[1724877375428,23.4825191,2528.7,2528.6,0.1250244]
[1724877375635,23.4825191,2528.7,2528.6,4.4e-06]
[1724877376615,23.89684107,2528.7,2528.6,4.4e-06]
[1724877377346,27.85144107,2528.7,2528.6,4.4e-06]
[1724877377636,28.82462822,2528.7,2528.6,4.4e-06]
[1724877378948,29.37462822,2528.7,2528.6,4.4e-06]
[1724877379509,31.84702938,2528.7,2528.6,4.4e-06]
[1724877379712,34.31942738,2528.7,2528.6,4.4e-06]
[1724877379912,31.84702622,2528.7,2528.6,4.4e-06]
[1724877381514,27.85144107,2528.7,2528.6,4.4e-06]
[1724877381721,24.85144107,2528.7,2528.6,4.4e-06]
[1724877381916,8.32352197,2528.7,2528.6,4.4e-06]
[1724877382110,7.9092,2528.7,2528.6,4.4e-06]
[1724877382445,11.8638,2528.7,2528.6,4.4e-06]
[1724877382686,7.9092,2528.7,2528.6,4.4e-06]
[1724877383851,3.9546,2528.7,2528.6,4.4e-06]
[1724877384011,3.95446,2528.8,2528.6,4.4e-06]
[1724877384209,3.9546,2528.7,2528.6,4.4e-06]
[1724877384757,3.9546,2528.7,2528.6,2.3527044]
[1724877385327,3.0,2528.7,2528.6,2.3527044]
[1724877385554,6.95457,2528.8,2528.6,2.3527044]
[1724877385730,7.9092,2528.7,2528.6,4.4e-06]
[1724877385914,6.9546,2528.7,2528.6,4.4e-06]
[1724877386452,3.0,2528.7,2528.6,4.4e-06]
[1724877386658,3.95421,2529.0,2528.6,4.4e-06]
[1724877386859,3.95357,2529.4,2528.7,6.30729]
[1724877387056,0.41418067,2529.8,2528.9,2.3527]
[1724877387265,0.41418067,2529.8,2529.1,6.30656]
[1724877387266,3.95325,2529.6,2529.1,6.30656]
[1724877387442,3.95325,2529.6,2529.2,0.55]
[1724877387769,3.95366,2529.3,2529.1,2.3527]
[1724877387940,3.95381,2529.2,2529.1,2.3527]
[1724877388391,7.90762,2529.2,2529.1,2.3527]
[1724877388879,3.95381,2529.2,2529.1,2.3527]
[1724877389238,3.95413,2529.1,2528.7,2.4401]
[1724877389478,3.95413,2529.1,2528.8,0.55]
[1724877389676,3.95413,2529.1,2528.7,2.4401]
[1724877389677,3.95444,2528.8,2528.7,2.4401]
[1724877389891,3.95444,2528.8,2528.6,4.4e-06]
[1724877389892,7.9092,2528.7,2528.6,4.4e-06]
[1724877390227,18.8184,2528.7,2528.6,4.4e-06]
[1724877390351,19.34621385,2528.7,2528.6,4.4e-06]
[1724877390559,25.2858059,2528.7,2528.6,4.4e-06]
[1724877390764,25.78951254,2528.7,2528.6,4.4e-06]
[1724877391169,28.13501254,2528.7,2528.6,4.4e-06]
[1724877391556,31.57121747,2528.7,2528.6,4.4e-06]
[1724877392093,27.60719869,2528.7,2528.6,4.4e-06]
[1724877392249,28.68501254,2528.7,2528.6,4.4e-06]
[1724877392577,31.02255484,2528.7,2528.6,4.4e-06]
[1724877393098,20.80339205,2528.7,2528.6,4.4e-06]
[1724877393258,21.3312059,2528.7,2528.6,4.4e-06]
[1724877394576,17.3766059,2528.7,2528.6,4.4e-06]
[1724877394762,21.3312059,2528.7,2528.6,4.4e-06]
[1724877395774,25.2858059,2528.7,2528.6,4.4e-06]
[1724877395984,23.80647126,2528.7,2528.6,4.4e-06]
[1724877396296,27.76107126,2528.7,2528.6,4.4e-06]
[1724877396658,25.2858059,2528.7,2528.6,4.4e-06]
[1724877397060,25.78951254,2528.7,2528.6,4.4e-06]
[1724877397283,28.26430952,2528.7,2528.6,4.4e-06]
[1724877397599,25.78951254,2528.7,2528.6,4.4e-06]
[1724877398979,16.32307396,2528.7,2528.6,4.4e-06]
[1724877399188,3.95647,2527.5,2527.4,2.4226]
[1724877399500,3.95788,2526.6,2526.5,2.3154]
[1724877399702,3.95766,2526.8,2526.5,2.3154]
[1724877399903,7.91576,2526.6,2526.5,2.3154]
[1724877400103,3.95788,2526.6,2526.5,2.3154]
[1724877400309,6.95788,2526.6,2526.5,2.3154]
[1724877401162,3.95736,2527.0,2526.5,2.54694]
[1724877401369,3.95713,2527.1,2526.5,6.50487]
[1724877401610,0.395621,2527.6,2526.5,2.3154]
[1724877401611,3.95788,2526.6,2526.5,2.3154]
[1724877401780,7.91576,2526.6,2526.5,2.3154]
[1724877402468,4.62719103,2526.9,2526.1,0.1250244]
[1724877402821,7.91702,2526.2,2526.1,0.1250244]
[1724877403111,10.91702,2526.2,2526.1,0.1250244]
[1724877403669,18.83404,2526.2,2526.1,0.1250244]
[1724877404704,14.87553,2526.2,2526.1,0.1250244]
[1724877405303,14.87553,2526.2,2524.4,0.3966]
[1724877405304,7.91984,2525.3,2525.2,2.469]
[1724877405516,3.95992,2525.3,2525.2,2.469]
[1724877405669,3.0,2525.3,2525.2,2.469]
[1724877406070,3.0,2525.4,2525.2,2.469]
[1724877406369,3.95992,2525.3,2524.3,2.469]
[1724877406571,3.96035,2525.1,2524.4,2.469]
[1724877406799,3.96057,2524.9,2524.4,2.469]
[1724877407074,3.96064,2524.9,2524.4,2.469]
[1724877407273,3.96072,2524.8,2524.4,2.469]
[1724877407514,4.6955209,2525.3,2524.4,2.469]
[1724877407515,3.96116,2524.6,2524.4,2.469]
[1724877407679,3.961,2524.7,2524.4,2.469]
[1724877408182,3.96063,2524.9,2524.4,2.469]
[1724877408402,3.9603,2525.1,2524.4,6.50944183]
[1724877408694,3.0,2525.0,2524.6,2.3472]
[1724877408893,3.95971,2525.5,2524.9,3.96042]
[1724877409077,3.96013,2525.2,2524.7,2.3472]
[1724877409280,3.96013,2525.2,2524.8,0.55]
[1724877409510,3.96007,2525.3,2524.8,0.55]
[1724877409694,3.96007,2525.3,2524.7,6.30804]
[1724877409695,3.96049,2525.0,2524.7,2.3472]
[1724877409877,3.96065,2524.9,2524.7,2.3472]
[1724877410215,3.96033,2525.1,2524.7,2.3472]
[1724877410567,3.95999,2525.3,2524.7,2.3472]
[1724877410801,3.95931,2525.7,2524.9,2.3472]
[1724877411014,8.58552103,2526.4,2525.2,2.3472]
[1724877411015,3.95966,2525.5,2525.2,2.3472]
[1724877411270,3.95947,2525.6,2525.2,2.3472]
[1724877411670,3.95938,2525.7,2525.2,2.3472]
[1724877411872,3.95904,2525.9,2525.2,6.92760698]
[1724877412112,3.95875,2526.1,2525.3,0.62919143]
[1724877412272,0.395875,2526.1,2525.4,2.4833]
[1724877412472,3.95961,2525.5,2525.4,2.4833]
[1724877412979,3.95944,2525.7,2525.4,2.4833]
[1724877413534,7.91754,2526.1,2525.4,6.44292]
[1724877413677,3.95929,2525.8,2525.5,0.55]
[1724877413876,3.95933,2525.7,2525.5,0.55]
[1724877414141,3.95951,2525.6,2525.4,2.4833]
[1724877414317,3.0,2526.1,2525.5,0.55]
[1724877414611,3.95911,2525.9,2525.5,0.55]
[1724877414811,7.91748,2526.1,2525.5,4.5096]
[1724877415023,3.0,2526.0,2525.5,0.55]
[1724877415192,3.95925,2525.8,2525.5,0.55]
[1724877415391,3.9593,2525.7,2525.5,0.55]
[1724877415776,3.95925,2525.8,2525.5,0.55]
[1724877416430,3.95885,2526.0,2525.5,0.55]
[1724877416581,3.9586,2526.2,2525.8,2.3538]
[1724877416788,7.91657,2526.4,2525.8,6.31294]
[1724877417008,3.95853,2526.2,2525.8,2.985094]
[1724877417213,3.9584,2526.3,2525.8,2.985094]
[1724877417382,3.95827,2526.4,2525.8,6.944224]
[1724877417578,3.9581,2526.5,2525.9,0.6944224]
[1724877417778,8.47717842,2527.0,2525.9,1.2444224]
[1724877417779,3.95794,2526.6,2525.9,1.2444224]
[1724877418017,3.95794,2526.6,2526.0,3.95877]
[1724877418200,3.95794,2526.6,2526.1,0.55]
[1724877418521,3.95733,2527.0,2526.4,3.95809]
[1724877418729,3.95672,2527.4,2526.8,3.95756]
[1724877418883,7.91283,2527.6,2526.8,4.0367086]
[1724877419082,3.95664,2527.4,2526.9,2.9805]
[1724877419524,3.95609,2527.8,2526.9,3.05964009]
[1724877419711,3.95577,2528.0,2527.3,2.4305]
[1724877420023,3.95603,2527.8,2527.4,0.55]
[1724877420230,3.95608,2527.8,2527.4,0.55]
[1724877420974,3.95574,2528.0,2527.4,0.55]
[1724877421265,3.95574,2528.0,2527.4,5.595993]
[1724877423839,3.95632,2527.6,2527.2,2.4575]
[1724877424073,3.0,2527.5,2527.2,2.4575]
[1724877424271,3.95607,2527.8,2527.2,2.4575]
[1724877424462,0.41437253,2528.5,2527.4,2.2552]
[1724877424463,3.95571,2528.0,2527.4,2.2552]
[1724877424662,3.95571,2528.0,2527.5,0.55]
[1724877425199,3.95629,2527.7,2527.5,0.55]
[1724877425411,4.36929253,2528.5,2527.5,0.55]
[1724877425412,3.95591,2527.9,2527.5,0.55]
[1724877425872,3.95647,2527.5,2527.4,2.2552]
[1724877426058,3.95644,2527.6,2527.4,2.2552]
[1724877426264,3.95582,2528.0,2527.4,2.2552]
[1724877426464,3.95556,2528.1,2527.7,2.2697]
[1724877426887,3.95551,2528.2,2527.7,2.2697]
[1724877427070,7.9103,2528.4,2527.8,3.95599]
[1724877427275,7.9103,2528.4,2527.9,0.55]
[1724877427276,3.95512,2528.4,2527.9,0.55]
[1724877427471,3.95463,2528.7,2527.9,0.55]
[1724877427701,3.95495,2528.5,2527.8,0.55]
[1724877427897,3.95509,2528.4,2527.8,4.50598]
[1724877428100,3.95525,2528.3,2527.8,1.623186]
[1724877428257,3.95525,2528.3,2527.8,0.55]
[1724877428656,7.91058,2528.3,2527.8,4.50596]
[1724877428965,3.0,2528.6,2527.8,0.55]
[1724877429159,3.0,2528.6,2527.7,2.2697]
[1724877429160,3.95585,2527.9,2527.7,2.2697]
[1724877429361,3.95546,2528.2,2527.7,6.22583]
[1724877429612,6.95499,2528.5,2527.9,3.95575]
[1724877430104,3.0,2528.5,2527.7,6.22576]
[1724877430398,3.95478,2528.6,2527.9,3.95581]
[1724877430696,6.95494,2528.5,2528.1,2.2522]
[1724877430898,3.0,2528.5,2528.1,6.20773]
[1724877431209,0.41432116,2529.0,2528.2,0.55]
[1724877431501,3.95508,2528.4,2528.2,0.55]
[1724877431865,10.90964,2528.6,2528.2,0.55]
[1724877432062,3.95533,2528.3,2528.1,2.2522]
[1724877432267,10.90997,2528.5,2528.1,2.2522]
[1724877432512,3.95507,2528.4,2528.1,2.2522]
[1724877433163,3.95526,2528.3,2528.1,2.2522]
[1724877435713,3.95565,2528.1,2527.8,7.40854648]
[1724877436300,3.95539,2528.2,2527.7,2.4366]
[1724877436645,7.91186,2527.9,2527.7,2.4366]
[1724877436837,7.912,2527.8,2527.7,2.4366]
[1724877436974,3.956,2527.8,2527.4,2.2833]
[1724877437300,3.0,2528.5,2527.0,19.58854648]
[1724877437301,3.95517,2528.4,2527.2,3.95686]
[1724877437507,3.0,2528.3,2527.7,3.95607]
[1724877437674,3.9554,2528.2,2527.7,3.95607]
[1724877437874,3.9554,2528.2,2527.7,7.91214]
[1724877438101,3.95515,2528.4,2527.8,3.95588]
[1724877438377,7.91122,2528.1,2527.9,0.55]
[1724877438605,3.95555,2528.1,2527.8,0.55]
[1724877438814,3.95613,2527.8,2527.6,9.69184648]
[1724877439070,3.95656,2527.5,2527.2,2.2833]
[1724877439277,3.95671,2527.4,2527.2,2.2833]
[1724877439572,7.9135,2527.4,2527.2,2.2833]
[1724877439771,7.91358,2527.3,2527.2,2.2833]
[1724877439967,3.95702,2527.2,2526.6,6.24108]
[1724877440173,7.91344,2527.4,2526.8,3.95747]
[1724877440384,6.95641,2527.6,2526.7,0.0791439]
[1724877440585,6.95641,2527.6,2527.1,2.2833]
[1724877440786,3.95652,2527.5,2527.1,2.2833]
[1724877440988,0.41432116,2529.0,2527.4,4.51381681]
[1724877441304,3.95491,2528.5,2528.0,2.2833]
[1724877441624,4.36853116,2529.0,2528.0,2.2833]
[1724877441625,3.95466,2528.7,2528.0,2.2833]
[1724877441792,3.95466,2528.7,2528.1,0.55]
[1724877441986,3.95404,2529.1,2528.2,0.07910442]
[1724877442186,3.95425,2529.0,2528.3,4.50513]
[1724877442424,8.32113429,2529.5,2528.7,2.3077]
[1724877442628,3.95353,2529.4,2528.8,4.50439]
[1724877442797,3.95357,2529.4,2528.8,0.55]
[1724877443047,3.95341,2529.5,2528.8,0.55]
[1724877443260,3.95367,2529.3,2528.8,0.55]
[1724877443789,3.9531,2529.7,2528.9,3.95416]
[1724877444092,3.9531,2529.7,2529.2,2.3077]
[1724877444093,3.95316,2529.7,2529.2,2.3077]
[1724877444393,3.95359,2529.4,2529.2,2.3077]
[1724877444556,3.95327,2529.6,2529.2,2.3077]
[1724877444756,3.95293,2529.8,2529.2,6.54727]
[1724877444970,3.95305,2529.7,2529.3,0.55]
[1724877445173,8.31945369,2530.0,2529.3,0.55]
[1724877445371,3.95262,2530.0,2529.3,4.50362]
[1724877445578,11.0813254,2530.7,2529.4,0.07906578]
[1724877445579,3.952,2530.4,2529.4,0.07906578]
[1724877445778,3.952,2530.4,2529.8,2.3712]
[1724877446085,3.95148,2530.7,2529.9,4.50269]
[1724877446250,3.95148,2530.7,2530.0,3.95255]
[1724877446462,0.3951,2531.0,2530.1,0.55]
[1724877446652,3.95128,2530.9,2530.1,3.9524]
[1724877446857,3.95116,2530.9,2530.2,0.55]
[1724877447087,4.36485862,2531.1,2530.3,2.3712]
[1724877447295,4.36485862,2531.1,2530.4,0.62902993]
[1724877447463,2.3625,2531.9,2530.6,3.95149]
[1724877447464,3.9506,2531.3,2530.6,3.95149]
[1724877447667,3.95029,2531.5,2530.7,4.50146]
[1724877447873,3.95008,2531.6,2530.8,2.3712]
[1724877448080,3.951,2531.0,2530.8,2.3712]
[1724877448393,0.43777284,2531.6,2530.4,2.3152]
[1724877448394,3.95164,2530.6,2530.4,2.3152]
[1724877448547,3.95134,2530.8,2530.4,2.3152]
[1724877448751,3.95165,2530.6,2530.4,2.3152]
[1724877449062,3.95165,2530.6,2529.7,3.95302]
[1724877449063,6.95178,2530.5,2529.7,3.95302]
[1724877449400,3.95199,2530.4,2529.9,2.3152]
[1724877449547,3.95199,2530.4,2530.0,0.55]
[1724877449747,3.0,2530.5,2530.0,0.89152]
[1724877449950,3.0,2530.7,2530.1,4.03133538]
[1724877450184,3.0,2530.7,2530.3,3.95208]
[1724877450441,3.0,2530.9,2530.3,3.95208]
[1724877450562,3.0,2530.9,2530.4,0.55]
[1724877451080,3.95133,2530.8,2530.4,0.55]
[1724877451289,3.95133,2530.8,2530.3,0.85334154]
[1724877451290,3.952,2530.4,2529.9,2.3152]
[1724877451596,3.952,2530.4,2530.0,0.55]
[1724877452093,3.95167,2530.6,2530.0,0.07905147]
[1724877452266,3.0,2530.5,2530.0,4.03158147]
[1724877452467,3.0,2530.5,2529.9,6.2678]
[1724877452667,3.95196,2530.4,2529.9,2.80146572]
[1724877452874,3.95214,2530.3,2529.9,2.3152]
[1724877453059,3.95256,2530.0,2529.9,2.3152]
[1724877453261,3.95256,2530.0,2528.7,4.35115]
[1724877453262,0.3,2530.4,2529.0,2.3152]
[1724877453475,3.95359,2529.4,2529.0,2.3152]
[1724877453700,3.95397,2529.1,2529.0,2.3152]
[1724877453973,3.95397,2529.1,2527.3,3.95669]
[1724877453974,2.3921,2529.6,2528.6,2.3152]
[1724877454204,3.95508,2528.4,2528.0,2.3152]
[1724877454370,3.95425,2529.0,2528.3,3.95522]
[1724877454577,3.0,2528.9,2528.3,3.95522]
[1724877455483,3.0,2528.9,2528.4,0.55]
[1724877455691,3.0,2528.9,2528.4,1.000522]
[1724877455916,3.0,2528.9,2528.4,0.450522]
[1724877456373,3.0,2528.9,2528.0,2.3152]
[1724877456573,3.0,2529.1,2528.3,3.9551]
[1724877456819,3.95425,2529.0,2528.3,3.9551]
[1724877456981,3.95388,2529.2,2528.4,4.50497]
[1724877457182,6.95407,2529.1,2528.4,4.50497]
[1724877457576,3.95451,2528.8,2528.4,0.55]
[1724877457775,3.95451,2528.8,2528.2,0.55]
[1724877458011,3.95415,2529.0,2528.2,0.55]
[1724877458213,3.0,2528.9,2528.3,3.95508]
[1724877458370,3.0,2528.9,2528.4,0.55]
[1724877458577,6.9543,2528.9,2528.4,0.55]
[1724877458807,3.0,2528.9,2528.4,0.55]
[1724877459114,3.95389,2529.2,2528.6,3.95473]
[1724877459115,3.0,2529.1,2528.6,3.95473]
[1724877459411,3.95329,2529.6,2528.9,3.95419]
[1724877459574,3.95319,2529.6,2529.1,3.95397]
[1724877459782,3.95298,2529.8,2529.2,0.55]
[1724877460322,3.95384,2529.2,2528.8,10.09726548]
[1724877460613,3.95384,2529.2,2528.9,0.55]
[1724877460988,3.95354,2529.4,2528.9,0.55]
[1724877461183,3.95354,2529.4,2528.9,4.50426]
[1724877461494,0.395298,2529.8,2529.1,3.95383]
[1724877461495,3.9529,2529.8,2529.1,3.95383]
[1724877461738,3.9529,2529.8,2529.2,4.5038]
[1724877462049,3.95338,2529.5,2529.2,0.55]
[1724877462412,6.95312,2529.7,2529.0,4.50411]
[1724877462649,3.95383,2529.2,2529.0,0.55]
[1724877462829,3.95383,2529.2,2528.9,0.55]
[1724877463030,3.95413,2529.0,2528.8,2.3871]
[1724877463217,7.90779,2529.2,2528.8,2.3871]
[1724877463409,3.954,2529.1,2528.8,2.3871]
[1724877464154,3.95383,2529.2,2528.8,2.3871]
[1724877464309,3.95421,2529.0,2528.4,13.64261648]
[1724877464646,3.95421,2529.0,2528.5,0.55]
[1724877464945,3.95439,2528.9,2528.5,0.55]
[1724877465143,3.95445,2528.8,2528.5,0.55]
[1724877465512,3.95439,2528.9,2528.1,7.40854648]